[Event "Liberia Championship 2023"]
[Site "Monrovia"]
[Date "2024.01.26"]
[Round "11.5"]
[White "John Jallah"]
[Black "Arnold Smith"]
[Result "1/2-1/2"]
[ECO "C50"]
[WhiteElo "1761"]
[BlackElo "1844"]
[Annotator "NA RC"]
[PlyCount "160"]
[EventDate "2024.01.16"]
[EventType "swiss"]
[EventCountry "LBR"]
[SourceTitle "playchess.com"]
[Source "ChessBase"]
[SourceQuality "1"]
[TimeControl "40/5400+30:1800+30"]

1. e4 {[%emt 0:18:27]} e5 {[%emt 0:00:08]} 2. Nf3 {[%emt 0:00:13]} Nf6 {[%emt 0:00:08]} 3. Nc3 {[%emt 0:00:10]} Nc6 {[%emt 0:00:19]} 4. a3 {[%emt 0:00:19]} h6 {[%emt 0:00:20]} 5. Bc4 {[%emt 0:00:20]} a6 {[%emt 0:00:06]} 6. d3 {[%emt 0:00:24]} Bc5 {[%emt 0:00:07]} 7. O-O {[%emt 0:01:24]} d6 {[%emt 0:00:05]} 8. h3 {[%emt 0:00:56]} O-O {[%emt 0:00:07]} 9. Ne2 {[%emt 0:00:24]} Nh5 {[%emt 0:01:52]} 10. d4 {[%emt 0:03:17]} exd4 {[%emt 0:01:04]} 11. Nexd4 {[%emt 0:00:16]} Qf6 {[%emt 0:00:30]} 12. Nxc6 {[%emt 0:03:04]} bxc6 {[%emt 0:00:09]} 13. c3 {[%emt 0:02:45]} Nf4 {[%emt 0:04:42]} 14. Re1 {[%emt 0:04:53]} Ng6 {[%emt 0:00:50]} 15. Be3 {[%emt 0:02:55]} Ne5 {[%emt 0:02:26]} 16. Nxe5 {[%emt 0:01:13]} Qxe5 {[%emt 0:00:09]} 17. Bd4 {[%emt 0:01:17]} Qg5 {[%emt 0:00:24]} 18. Re3 {[%emt 0:00:28]} Bxd4 {[%emt 0:00:54]} 19. cxd4 {[%emt 0:57:15]} Be6 {[%emt 0:00:24]} 20. Qe2 {[%emt 0:56:38]} a5 {[%emt 0:03:42]} 21. Rf1 {[%emt 0:01:11]} Bxc4 {[%emt 0:08:27]} 22. Qxc4 {[%emt 0:00:16]} Qb5 {[%emt 0:00:10]} 23. Qxb5 {[%emt 0:04:15]} cxb5 {[%emt 0:00:06]} 24. Rc3 {[%emt 0:00:17]} Rfe8 {[%emt 0:00:53]} 25. f3 {[%emt 0:00:29]} Re7 {[%emt 0:00:18]} 26. Rfc1 {[%emt 0:00:48]} Ra7 {[%emt 0:01:16]} 27. Kf2 {[%emt 0:00:25]} Kf8 {[%emt 0:00:15]} 28. g3 {[%emt 0:00:12]} Ke8 {[%emt 0:00:05]} 29. d5 {[%emt 0:01:09]} Kd7 {[%emt 0:00:45]} 30. g4 {[%emt 0:01:30]} Re8 {[%emt 0:00:17]} 31. Rc6 {[%emt 0:02:22]} a4 {[%emt 1:15:02]} 32. Rb1 {[%emt 0:01:54]} Rb8 {[%emt 0:01:05]} 33. b4 {[%emt 0:00:20]} axb3 {[%emt 0:00:45]} 34. Rxb3 {[%emt 0:00:25]} Rbb7 {[%emt 1:10:33]} 35. h4 {[%emt 0:00:30]} Ra4 {[%emt 0:00:19]} 36. Ke3 {[%emt 0:03:46]} b4 {[%emt 0:00:24]} 37. axb4 {[%emt 0:02:02]} Rbxb4 {[%emt 0:00:46]} 38. Rxb4 {[%emt 0:01:09]} Rxb4 {[%emt 0:00:09]} 39. Ra6 {[%emt 0:00:06]} Rb8 {[%emt 0:00:22]} 40. Ra3 {[%emt 0:00:00]} g6 {[%emt 0:00:00]} 41. Kf4 {[%emt 0:03:19]} f6 {[%emt 0:04:08]} 42. Ra2 {[%emt 0:03:32]} Rb3 {[%emt 0:03:43]} 43. Rh2 {[%emt 0:02:45]} Ke7 {[%emt 0:01:49]} 44. Rh3 {[%emt 0:02:38]} Kf7 {[%emt 0:01:31]} 45. g5 {[%emt 0:01:23]} fxg5+ {[%emt 0:00:54]} 46. hxg5 {[%emt 0:00:42]} h5 {[%emt 0:00:36]} 47. Rh2 {[%emt 0:02:23]} Rc3 {[%emt 0:00:40]} 48. Ra2 {[%emt 0:01:32]} Kg7 {[%emt 0:01:34]} 49. Ra6 {[%emt 0:00:57]} Kf7 {[%emt 0:01:17]} 50. Rc6 {[%emt 0:00:55]} Rxc6 {[%emt 0:00:59]} 51. dxc6 {[%emt 0:01:14]} Ke6 {[%emt 0:00:38]} 52. Ke3 {[%emt 0:05:48]} d5 {[%emt 0:00:45]} 53. Kd4 {[%emt 0:00:51]} dxe4 {[%emt 0:00:51]} 54. Kxe4 {[%emt 0:00:45]} h4 {[%emt 0:01:28]} 55. Kf4 {[%emt 0:00:44]} h3 {[%emt 0:00:38]} 56. Kg3 {[%emt 0:00:55]} Kf5 {[%emt 0:00:38]} 57. Kxh3 {[%emt 0:00:51]} Kf4 {[%emt 0:01:38]} 58. Kg2 {[%emt 0:01:03]} Kxg5 {[%emt 0:00:39]} 59. Kg3 {[%emt 0:01:26]} Kf5 {[%emt 0:00:40]} 60. Kf2 {[%emt 0:48:40]} Kf4 {[%emt 0:00:49]} 61. Ke2 {[%emt 0:02:13]} g5 {[%emt 0:00:42]} 62. Kf2 {[%emt 0:00:47]} g4 {[%emt 0:00:46]} 63. fxg4 {[%emt 0:00:36]} Kxg4 {[%emt 0:00:46]} 64. Ke3 {[%emt 0:00:44]} Kf5 {[%emt 0:00:36]} 65. Kd4 {[%emt 0:00:43]} Ke6 {[%emt 0:00:38]} 66. Kc5 {[%emt 0:00:41]} Ke5 {[%emt 0:00:49]} 67. Kb5 {[%emt 0:02:36]} Kd5 {[%emt 0:00:37]} 68. Kb4 {[%emt 0:00:44]} Kxc6 {[%emt 0:00:40]} 69. Kc4 {[%emt 0:00:48]} Kd6 {[%emt 0:00:46]} 70. Kd4 {[%emt 0:01:06]} c6 {[%emt 0:04:57]} 71. Kc4 {[%emt 0:01:19]} c5 {[%emt 0:00:41]} 72. Kc3 {[%emt 0:41:03]} Kd5 {[%emt 0:00:39]} 73. Kd3 {[%emt 0:00:55]} c4+ {[%emt 0:00:43]} 74. Kc3 {[%emt 0:00:45]} Kc5 {[%emt 0:00:35]} 75. Kc2 {[%emt 0:39:21]} Kb4 {[%emt 1:19:05]} 76. Kb2 {[%emt 0:39:11]} c3+ {[%emt 0:00:00]} 77. Kc2 {[%emt 0:00:00]} Kc4 {[%emt 0:00:00]} 78. Kc1 {[%emt 0:00:00]} Kb3 {[%emt 0:00:00]} 79. Kb1 {[%emt 0:00:00]} c2+ {[%emt 0:00:00]} 80. Kc1 {[%emt 0:00:00]} Kc3 {[%emt 0:00:00]} 1/2-1/2

[Event "Liberia Championship 2023"]
[Site "Monrovia"]
[Date "2024.01.26"]
[Round "11.7"]
[White "Bobby Ballah"]
[Black "Alfred J. Kollie"]
[Result "1-0"]
[ECO "C50"]
[WhiteElo "1913"]
[BlackElo "1612"]
[Annotator "NA RC"]
[PlyCount "105"]
[EventDate "2024.01.16"]
[EventType "swiss"]
[EventCountry "LBR"]
[SourceTitle "playchess.com"]
[Source "ChessBase"]
[SourceQuality "1"]
[TimeControl "40/5400+30:1800+30"]

1. e4 {[%emt 0:07:59]} e5 {[%emt 0:04:06]} 2. Nf3 {[%emt 0:00:25]} Nc6 {[%emt 0:00:14]} 3. d4 {[%emt 0:00:13]} exd4 {[%emt 0:00:12]} 4. Bc4 {[%emt 0:00:05]} Be7 {[%emt 0:00:28]} 5. O-O {[%emt 0:01:06]} d6 {[%emt 0:00:06]} 6. Nxd4 {[%emt 0:00:36]} Nxd4 {[%emt 0:00:45]} 7. Qxd4 {[%emt 0:00:00]} Bf6 {[%emt 0:00:08]} 8. Qd3 {[%emt 0:05:42]} Ne7 {[%emt 0:00:24]} 9. Nc3 {[%emt 0:00:16]} O-O {[%emt 0:00:34]} 10. Be3 {[%emt 0:01:53]} Be6 {[%emt 0:00:54]} 11. Rad1 {[%emt 0:00:47]} Ng6 {[%emt 0:00:25]} 12. Bxe6 {[%emt 0:03:47]} fxe6 {[%emt 0:00:24]} 13. Qc4 {[%emt 0:00:20]} Qe7 {[%emt 0:00:22]} 14. f4 {[%emt 0:00:32]} Kh8 {[%emt 0:00:13]} 15. e5 {[%emt 0:00:09]} dxe5 {[%emt 0:03:33]} 16. Bc5 {[%emt 0:00:10]} Qf7 {[%emt 0:01:02]} 17. Bxf8 {[%emt 0:01:25]} Rxf8 {[%emt 0:00:09]} 18. fxe5 {[%emt 0:01:24]} Nxe5 {[%emt 0:00:38]} 19. Qe2 {[%emt 0:02:36]} h6 {[%emt 0:01:41]} 20. Ne4 {[%emt 0:01:34]} Qe7 {[%emt 0:01:16]} 21. Nxf6 {[%emt 0:00:22]} gxf6 {[%emt 0:00:18]} 22. Qh5 {[%emt 0:00:47]} Kh7 {[%emt 0:03:01]} 23. Rde1 {[%emt 0:01:22]} Qc5+ {[%emt 0:00:06]} 24. Kh1 {[%emt 0:00:21]} Qxc2 {[%emt 0:00:42]} 25. Rc1 {[%emt 0:00:42]} Qg6 {[%emt 0:00:48]} 26. Rxc7+ {[%emt 0:01:40]} Rf7 {[%emt 0:00:25]} 27. Rxf7+ {[%emt 0:01:53]} Nxf7 {[%emt 0:00:10]} 28. Qf3 {[%emt 0:00:06]} Kg7 {[%emt 0:01:08]} 29. Qxb7 {[%emt 0:00:08]} Qc2 {[%emt 0:00:33]} 30. h3 {[%emt 0:01:17]} Kg6 {[%emt 0:00:11]} 31. Rf3 {[%emt 0:01:02]} Ng5 {[%emt 0:00:51]} 32. Rg3 {[%emt 0:00:26]} Kf5 {[%emt 0:00:11]} 33. Qb5+ {[%emt 0:02:01]} Kg6 {[%emt 0:02:12]} 34. h4 {[%emt 1:04:24]} Qc7 {[%emt 1:19:20]} 35. Qd3+ {[%emt 0:00:00]} f5 {[%emt 0:00:00]} 36. hxg5 {[%emt 0:00:00]} hxg5 {[%emt 0:01:00]} 37. Qe3 {[%emt 0:01:30]} Qe7 {[%emt 0:00:00]} 38. Qe5 {[%emt 0:00:00]} Qd7 {[%emt 0:00:00]} 39. Re3 {[%emt 0:00:00]} Kf7 {[%emt 0:00:00]} 40. Rc3 {[%emt 0:00:00]} Kg6 {[%emt 0:00:00]} 41. b4 {[%emt 0:00:00]} Qd1+ {[%emt 0:00:00]} 42. Kh2 {[%emt 0:00:00]} Qh5+ {[%emt 0:00:00]} 43. Rh3 {[%emt 0:00:00]} Qg4 {[%emt 0:00:00]} 44. Qxe6+ {[%emt 0:00:00]} Kg7 {[%emt 0:00:00]} 45. Qe7+ {[%emt 0:00:00]} Kg6 {[%emt 0:34:30]} 46. Qh7+ {[%emt 0:34:30]} Kf6 {[%emt 0:00:00]} 47. Rh6+ {[%emt 0:00:00]} Ke5 {[%emt 0:00:00]} 48. Qc7+ {[%emt 0:00:00]} Ke4 {[%emt 0:00:00]} 49. Qc4+ {[%emt 0:00:00]} Ke3 {[%emt 0:00:00]} 50. Qxg4 {[%emt 0:00:00]} fxg4 {[%emt 0:00:00]} 51. Kg3 {[%emt 0:00:00]} Kd4 {[%emt 0:00:00]} 52. Kxg4 {[%emt 0:00:00]} Kc4 {[%emt 0:00:00]} 53. a3 {[%emt 0:00:00]} 1-0

[Event "Liberia Championship 2023"]
[Site "Monrovia"]
[Date "2024.01.26"]
[Round "11.7"]
[White "Bobby Ballah"]
[Black "Alfred J. Kollie"]
[Result "*"]
[ECO "C50"]
[WhiteElo "1913"]
[BlackElo "1612"]
[Annotator "NA RC"]
[PlyCount "59"]
[EventDate "2024.01.16"]
[EventType "swiss"]
[EventCountry "LBR"]
[SourceTitle "playchess.com"]
[Source "ChessBase"]
[SourceQuality "1"]
[TimeControl "40/5400+30:1800+30"]

1. e4 {[%emt 0:07:59]} e5 {[%emt 0:04:06]} 2. Nf3 {[%emt 0:00:25]} Nc6 {[%emt 0:00:14]} 3. d4 {[%emt 0:00:13]} exd4 {[%emt 0:00:12]} 4. Bc4 {[%emt 0:00:05]} Be7 {[%emt 0:00:28]} 5. O-O {[%emt 0:01:06]} d6 {[%emt 0:00:06]} 6. Nxd4 {[%emt 0:00:36]} Nxd4 {[%emt 0:00:45]} 7. Qxd4 {[%emt 0:00:00]} Bf6 {[%emt 0:00:08]} 8. Qd3 {[%emt 0:05:42]} Ne7 {[%emt 0:00:24]} 9. Nc3 {[%emt 0:00:16]} O-O {[%emt 0:00:34]} 10. Be3 {[%emt 0:01:53]} Be6 {[%emt 0:00:54]} 11. Rad1 {[%emt 0:00:47]} Ng6 {[%emt 0:00:25]} 12. Bxe6 {[%emt 0:03:47]} fxe6 {[%emt 0:00:24]} 13. Qc4 {[%emt 0:00:20]} Qe7 {[%emt 0:00:22]} 14. f4 {[%emt 0:00:32]} Kh8 {[%emt 0:00:13]} 15. e5 {[%emt 0:00:09]} dxe5 {[%emt 0:03:33]} 16. Bc5 {[%emt 0:00:10]} Qf7 {[%emt 0:01:02]} 17. Bxf8 {[%emt 0:01:25]} Rxf8 {[%emt 0:00:09]} 18. fxe5 {[%emt 0:01:24]} Nxe5 {[%emt 0:00:38]} 19. Qe2 {[%emt 0:02:36]} h6 {[%emt 0:01:41]} 20. Ne4 {[%emt 0:01:34]} Qe7 {[%emt 1:24:12]} 21. Nxf6 {[%emt 0:00:22]} gxf6 {[%emt 0:00:18]} 22. Qh5 {[%emt 0:00:47]} Kh7 {[%emt 1:23:38]} 23. Rde1 {[%emt 0:01:22]} Qc5+ {[%emt 0:00:06]} 24. Kh1 {[%emt 0:00:21]} Qxc2 {[%emt 0:00:42]} 25. Rc1 {[%emt 0:00:42]} Qg6 {[%emt 1:21:19]} 26. Rc2 {[%emt 1:08:57]} c5 27. Rxc5 {[%emt 0:00:00]} Rf7 {[%emt 0:00:55]} 28. Rc7 Re7 29. Rxe7+ {[%emt 0:00:00]} Nf7 30. Rxf7+ {[%emt 0:00:00]} *

[Event "Liberia Championship 2023"]
[Site "Monrovia"]
[Date "2024.01.26"]
[Round "11.8"]
[White "Foday W. Kondoh"]
[Black "Jacob, Jallah"]
[Result "0-1"]
[ECO "B12"]
[WhiteElo "1785"]
[BlackElo "1781"]
[Annotator "NA RC"]
[PlyCount "77"]
[EventDate "2024.01.16"]
[EventType "swiss"]
[EventCountry "LBR"]
[SourceTitle "playchess.com"]
[Source "ChessBase"]
[SourceQuality "1"]
[TimeControl "40/5400+30:1800+30"]

1. e4 {[%emt 0:00:08]} c6 {[%emt 0:00:07]} 2. d4 {[%emt 0:00:05]} d5 {[%emt 0:00:02]} 3. e5 {[%emt 0:00:30]} c5 {[%emt 0:01:43]} 4. dxc5 {[%emt 0:01:55]} e6 {[%emt 0:01:54]} 5. b4 {[%emt 0:01:34]} Ne7 {[%emt 0:04:07]} 6. c4 {[%emt 0:03:06]} Nbc6 {[%emt 1:25:37]} 7. cxd5 {[%emt 0:00:21]} Nxd5 {[%emt 0:00:00]} 8. Bb5 {[%emt 0:01:17]} Ndxb4 {[%emt 0:00:00]} 9. Qxd8+ {[%emt 0:00:33]} Kxd8 {[%emt 0:00:00]} 10. Na3 {[%emt 0:01:48]} a6 {[%emt 0:00:00]} 11. Bg5+ {[%emt 0:02:37]} Kc7 {[%emt 0:00:00]} 12. Bxc6 {[%emt 0:01:57]} Nxc6 {[%emt 0:00:00]} 13. Nf3 {[%emt 0:02:06]} Bxc5 {[%emt 0:00:00]} 14. Nc2 {[%emt 0:00:25]} h6 {[%emt 0:00:00]} 15. Be3 {[%emt 0:00:17]} Bxe3 {[%emt 0:00:00]} 16. Nxe3 {[%emt 0:00:04]} f6 {[%emt 0:00:00]} 17. Rc1 {[%emt 0:00:37]} Bd7 {[%emt 0:00:00]} 18. O-O {[%emt 0:01:14]} Rad8 {[%emt 0:00:00]} 19. Nc4 {[%emt 0:00:04]} Rhf8 {[%emt 0:00:00]} 20. Rfe1 {[%emt 0:04:45]} b5 {[%emt 0:00:00]} 21. Na5 {[%emt 0:00:35]} Kb6 {[%emt 0:00:00]} 22. Nxc6 {[%emt 0:05:44]} Bxc6 {[%emt 0:00:00]} 23. exf6 {[%emt 0:00:25]} Rxf6 {[%emt 0:00:00]} 24. Ne5 {[%emt 0:01:53]} Bd5 {[%emt 0:00:00]} 25. f3 {[%emt 0:01:39]} Bxa2 {[%emt 0:00:00]} 26. Rc6+ {[%emt 0:00:42]} Kb7 {[%emt 0:00:00]} 27. Rc2 {[%emt 0:01:36]} Bb3 {[%emt 0:00:00]} 28. Rc3 {[%emt 0:00:03]} Rd1 {[%emt 0:00:00]} 29. Rxd1 {[%emt 0:01:27]} Bxd1 {[%emt 0:00:00]} 30. Rd3 {[%emt 0:00:34]} Rf5 {[%emt 0:00:00]} 31. f4 {[%emt 0:00:52]} Bc2 {[%emt 0:00:00]} 32. Rd7+ {[%emt 0:01:18]} Kc8 {[%emt 0:00:00]} 33. Rd6 {[%emt 0:01:20]} Bb3 {[%emt 0:00:00]} 34. Rxa6 {[%emt 0:10:38]} Rxf4 {[%emt 0:00:00]} 35. Ra8+ {[%emt 0:02:19]} Kc7 {[%emt 0:00:00]} 36. Ra7+ {[%emt 0:05:18]} Kd6 {[%emt 0:00:00]} 37. Nf3 {[%emt 0:07:15]} g5 {[%emt 0:00:00]} 38. Ra6+ {[%emt 0:00:26]} Kc5 {[%emt 0:00:00]} 39. Ra2 {[%emt 0:40:33]} 0-1

[Event "Liberia Championship 2023"]
[Site "Monrovia"]
[Date "2024.01.26"]
[Round "11.9"]
[White "Prince Jegbadai"]
[Black "Kennedy Zinnah Kengo"]
[Result "0-1"]
[ECO "D00"]
[WhiteElo "1627"]
[BlackElo "1789"]
[Annotator "NA"]
[PlyCount "102"]
[EventDate "2024.01.16"]
[EventType "swiss"]
[EventCountry "LBR"]
[SourceTitle "playchess.com"]
[Source "ChessBase"]
[SourceQuality "1"]
[TimeControl "40/5400+30:1800+30"]

1. d4 {[%emt 0:00:17]} d5 {[%emt 0:01:08]} 2. Bf4 {[%emt 0:00:27]} Nf6 {[%emt 0:02:43]} 3. e3 {[%emt 0:00:20]} e6 {[%emt 0:00:06]} 4. c3 {[%emt 0:00:14]} a6 {[%emt 0:00:01]} 5. Bd3 {[%emt 0:00:15]} Be7 {[%emt 0:00:00]} 6. h3 {[%emt 0:00:16]} Nbd7 {[%emt 0:00:07]} 7. Nd2 {[%emt 0:00:17]} c5 {[%emt 0:00:08]} 8. Ngf3 {[%emt 0:00:35]} b5 {[%emt 0:01:27]} 9. b3 {[%emt 0:00:11]} Bb7 {[%emt 0:00:06]} 10. O-O {[%emt 0:00:19]} Rc8 {[%emt 0:00:02]} 11. Nh2 {[%emt 0:00:29]} O-O {[%emt 1:30:12]} 12. Rb1 {[%emt 1:32:50]} Qa5 {[%emt 0:00:00]} 13. Qc2 {[%emt 0:00:30]} cxd4 {[%emt 0:01:00]} 14. b4 {[%emt 0:00:00]} Qa3 {[%emt 0:00:00]} 15. Rb3 {[%emt 0:00:00]} Qa4 {[%emt 0:00:00]} 16. exd4 {[%emt 0:00:00]} Nb6 {[%emt 0:00:00]} 17. Qb2 {[%emt 0:00:00]} Nc4 {[%emt 0:00:00]} 18. Nxc4 {[%emt 0:00:00]} bxc4 {[%emt 0:00:00]} 19. Ra3 {[%emt 0:00:00]} Qc6 {[%emt 0:00:00]} 20. Be2 {[%emt 0:00:00]} Ra8 {[%emt 0:00:00]} 21. Nf3 {[%emt 0:00:00]} Rfd8 22. Ne5 Qb6 {[%emt 0:00:00]} 23. Ra5 {[%emt 0:00:00]} Ra7 {[%emt 0:00:00]} 24. Qc2 {[%emt 0:00:00]} Bd6 {[%emt 0:00:00]} 25. Bg5 {[%emt 0:00:00]} Be7 {[%emt 0:00:00]} 26. Bf4 Bc8 27. Kh1 {[%emt 0:00:00]} Re8 {[%emt 0:00:00]} 28. Ng4 {[%emt 0:00:00]} Ne4 {[%emt 0:00:00]} 29. f3 {[%emt 0:00:00]} Nxc3 {[%emt 0:00:00]} 30. a3 {[%emt 0:00:00]} Nxe2 {[%emt 0:00:00]} 31. Qxe2 {[%emt 0:00:00]} Bd8 {[%emt 0:00:00]} 32. Rc1 {[%emt 0:00:00]} Qb7 {[%emt 0:00:00]} 33. Ra4 {[%emt 0:00:00]} Bd7 {[%emt 0:00:00]} 34. b5 {[%emt 0:00:00]} Bxb5 {[%emt 0:00:00]} 35. Rb1 {[%emt 0:00:00]} Bxa4 {[%emt 0:00:00]} 36. Rxb7 {[%emt 0:00:00]} Rxb7 {[%emt 0:00:00]} 37. Bd6 {[%emt 0:00:00]} Rb1+ {[%emt 0:00:00]} 38. Kh2 {[%emt 0:00:00]} Bb6 {[%emt 0:00:00]} 39. Qa2 {[%emt 0:00:00]} Rb3 {[%emt 0:00:00]} 40. Qf2 {[%emt 0:00:00]} c3 {[%emt 0:00:00]} 41. Qe2 {[%emt 0:00:00]} Bb5 {[%emt 0:00:00]} 42. Qc2 {[%emt 0:00:00]} Bc4 {[%emt 0:00:00]} 43. Bc5 {[%emt 0:00:00]} Bc7+ {[%emt 0:00:00]} 44. Ne5 {[%emt 0:00:00]} f6 {[%emt 0:00:00]} 45. f4 {[%emt 0:46:00]} fxe5 {[%emt 0:46:00]} 46. fxe5 {[%emt 0:00:00]} a5 {[%emt 0:00:00]} 47. a4 {[%emt 0:00:00]} Bd8 {[%emt 0:00:00]} 48. Kg3 {[%emt 0:00:00]} Bg5 {[%emt 0:00:00]} 49. Kg4 {[%emt 0:02:00]} Bd2 {[%emt 0:02:00]} 50. Qd1 {[%emt 0:00:00]} g6 {[%emt 0:00:00]} 51. h4 {[%emt 0:00:00]} h5+ {[%emt 0:00:00]} 0-1